bitfinex/quotes_ETHUSD_20250326
["timestamp","ask_amount","ask_price","bid_price","bid_amount"]
[1742947793447,3.0,2067.4,2067.2,2.04008498]
[1742947793764,3.0,2067.4,2067.3,0.43026106]
[1742947793944,3.0,2067.4,2067.2,2.04008498]
[1742947794146,3.0,2067.4,2067.3,0.43026106]
[1742947794454,3.0,2067.4,2067.2,2.04008498]
[1742947794642,3.0,2067.5,2067.3,0.73344944]
[1742947800060,4.8359,2067.9,2067.4,5.63285]
[1742947800256,3.0,2067.8,2067.4,5.63285]
[1742947800459,4.8359,2067.9,2067.5,0.42872687]
[1742947800654,4.8359,2067.9,2067.5,1.5489244]
[1742947800860,3.0,2067.8,2067.5,1.5489244]
[1742947801056,4.8359,2067.9,2067.5,1.5489244]
[1742947802164,4.8359,2067.9,2067.7,0.7959]
[1742947802165,3.0,2067.9,2067.7,0.7959]
[1742947802338,4.516,2068.0,2067.7,0.7959]
[1742947802339,3.0,2068.0,2067.7,0.7959]
[1742947802539,7.83559,2068.0,2067.8,0.99040175]
[1742947802759,7.83559,2068.0,2067.8,0.42717675]
[1742947802963,3.0,2068.0,2067.7,0.7959]
[1742947803245,5.61453,2068.2,2067.8,0.42589965]
[1742947803246,4.83513,2068.2,2067.8,0.42589965]
[1742947803453,30.4189,2068.3,2067.8,0.42589965]
[1742947803651,3.0,2068.2,2067.8,0.7959]
[1742947803855,3.0,2068.2,2067.9,0.563202]
[1742947804067,3.0,2068.2,2067.9,0.98865972]
[1742947806674,0.7794,2068.4,2067.9,0.42545772]
[1742947806866,8.61498,2068.0,2067.9,0.42545772]
[1742947807062,3.7794,2068.0,2067.9,0.42545772]
[1742947807268,3.0,2068.0,2067.6,6.35704967]
[1742947807471,3.0,2068.0,2067.9,0.42442745]
[1742947807967,3.0,2068.0,2067.6,11.19339967]
[1742947808280,3.0,2068.0,2067.7,1.71167107]
[1742947808458,7.83561,2068.0,2067.7,1.71167107]
[1742947809850,3.0,2068.0,2067.7,1.71167107]
[1742947810156,3.0,2068.0,2067.7,6.54795107]
[1742947812406,3.0,2068.0,2067.7,1.71167107]
[1742947812592,3.0,2068.0,2067.8,0.73440911]
[1742947813059,3.0,2068.0,2067.9,0.42442745]
[1742947813570,7.83558,2068.0,2067.9,0.42442745]
[1742947813774,3.0,2068.0,2067.9,0.42442745]
[1742947813977,7.83558,2068.0,2067.7,1.28635972]
[1742947814165,7.83558,2068.0,2067.8,0.42486938]
[1742947814368,7.83558,2068.0,2067.7,1.28635972]
[1742947814610,3.0,2068.0,2067.8,0.42486938]
[1742947814771,7.83561,2068.0,2067.8,0.42486938]
[1742947814978,3.0,2068.0,2067.7,1.28635972]
[1742947815296,3.0,2068.0,2067.8,0.42486938]
[1742947815603,3.0,2068.0,2067.7,1.28635972]
[1742947815801,3.0,2068.0,2067.9,0.42415856]
[1742947815962,3.0,2068.0,2067.8,0.42460049]
[1742947816163,3.0,2068.0,2067.7,1.28635972]
[1742947816363,3.0,2068.0,2067.8,0.42460049]
[1742947816686,3.0,2068.0,2067.7,1.28635972]
[1742947816889,3.0,2068.0,2067.9,0.42415856]
[1742947817104,3.0,2068.0,2067.8,1.11647646]
[1742947817306,3.0,2068.0,2067.9,0.42415856]
[1742947818570,7.83558,2068.0,2067.9,0.42415856]
[1742947818971,7.83558,2068.0,2067.7,1.28635972]
[1742947819171,7.83558,2068.0,2067.8,0.42460049]
[1742947819403,7.83558,2068.0,2067.7,1.28635972]
[1742947819567,7.83558,2068.0,2067.9,0.42415856]
[1742947819772,7.83558,2068.0,2067.7,1.28635972]
[1742947820078,7.83558,2068.0,2067.8,1.11647446]
[1742947820278,3.0,2068.0,2067.8,0.42460049]
[1742947820484,3.0,2068.0,2067.9,0.7809]
[1742947820810,3.0,2068.0,2067.9,1.20505856]
[1742947822107,4.83493,2068.3,2067.9,1.20505856]
[1742947822271,3.0,2068.3,2067.9,10.87651856]
[1742947822472,3.0,2068.3,2068.0,1.08765186]
[1742947822889,3.0,2068.3,2068.1,0.42327483]
[1742947823398,7.83489,2068.3,2068.1,0.42327483]
[1742947824775,12.66999,2068.3,2068.1,0.42327483]
[1742947824976,7.83489,2068.3,2068.1,0.42327483]
[1742947825279,12.66988,2068.3,2068.1,0.42327483]
[1742947825476,7.83489,2068.3,2068.1,0.42327483]
[1742947826184,4.83512,2068.2,2068.1,0.42327483]
[1742947826391,4.83558,2068.1,2067.7,1.28635972]
[1742947826591,9.67115,2068.1,2067.8,1.76009366]
[1742947827313,4.83557,2068.1,2067.8,1.76009366]
[1742947828207,4.83557,2068.1,2067.8,1.03688746]
[1742947830713,4.83557,2068.1,2067.8,1.76009366]
[1742947831609,4.83557,2068.1,2067.8,1.88402807]
[1742947831818,4.83557,2068.1,2067.9,0.89609604]
[1742947832112,4.83557,2068.1,2067.9,1.44458616]
[1742947833193,8.62789,2068.2,2067.9,1.44458616]
[1742947835708,12.67049,2068.2,2067.9,1.44458616]
[1742947835915,7.83519,2068.2,2067.9,1.44458616]
[1742947836303,4.83538,2068.1,2067.9,1.44458616]
[1742947836690,10.46365,2068.1,2067.9,0.54849012]
[1742947836904,5.62808,2068.1,2067.9,0.54849012]
[1742947837321,5.62808,2068.1,2067.7,6.12261972]
[1742947837923,5.62808,2068.1,2067.8,0.54893806]
[1742947838423,5.62808,2068.1,2067.9,0.54849012]
[1742947838625,5.62808,2068.1,2067.7,6.12261972]
[1742947838828,5.62808,2068.1,2068.0,0.54804221]
[1742947838996,5.62808,2068.1,2067.8,1.27263902]
[1742947839197,5.62808,2068.1,2067.9,1.72627146]
[1742947840232,0.7927,2068.1,2067.9,1.72627146]
[1742947841026,7.83514,2068.2,2067.9,1.72627146]
[1742947841844,3.0,2068.2,2067.9,1.72627146]
[1742947842136,3.0,2068.2,2067.9,8.74021848]
[1742947842499,3.0,2068.2,2068.0,4.83539]
[1742947842817,3.0,2068.2,2068.1,0.54759435]
[1742947843892,3.0,2068.2,2068.1,1.27210515]
[1742947844307,3.0,2068.2,2068.1,2.7020295]
[1742947845000,3.0,2068.2,2068.1,3.87981084]
[1742947848029,3.0,2068.2,2068.1,3.15530004]
[1742947849436,8.62782,2068.2,2068.1,1.72537569]
[1742947850132,7.83512,2068.2,2068.1,1.72537569]
[1742947850329,3.0,2068.2,2068.1,1.72537569]
[1742947850827,3.0,2068.2,2068.1,5.83593717]
[1742947851412,3.0,2068.2,2068.1,1.00058717]
[1742947852333,3.0,2068.2,2068.1,1.72511849]
[1742947853204,3.0,2068.2,2068.1,2.45944634]
[1742947854211,3.0,2068.2,2068.1,3.18357656]
[1742947855706,3.0,2068.2,2068.1,2.00645352]
[1742947855907,3.0,2068.2,2068.1,3.18305112]
[1742947868145,5.62273,2068.8,2068.3,4.83488]
[1742947868445,5.62273,2068.8,2068.4,1.10448246]
[1742947868644,4.83401,2068.7,2068.4,1.10448246]
[1742947869315,9.66817,2068.7,2068.4,1.10448246]
[1742947869868,4.83401,2068.7,2068.5,0.45253754]
[1742947870360,7.83401,2068.7,2068.6,0.54463913]
[1742947871264,8.65271,2068.7,2068.6,0.54463913]
[1742947871476,10.5692704,2068.7,2068.6,0.54463913]
[1742947872059,4.8343,2068.6,2068.2,0.7242135]
[1742947873169,4.8343,2068.6,2068.3,0.7242135]
[1742947874273,4.8343,2068.6,2068.1,5.56967785]
[1742947874421,4.8343,2068.6,2068.4,0.45257231]
[1742947875568,4.8343,2068.6,2068.1,5.56967785]
[1742947875749,4.8343,2068.6,2068.2,3.01916379]
[1742947875956,13.48684,2068.7,2068.2,3.01916379]
[1742947876157,13.48684,2068.7,2068.1,4.83515]
[1742947877368,8.65271,2068.7,2068.1,9.67036]
[1742947877569,8.65271,2068.7,2068.1,4.83515]
[1742947877767,0.8358,2068.9,2068.4,0.55]
[1742947877939,0.02,2068.9,2068.6,5.59296]
[1742947878124,0.02,2068.9,2068.7,0.56412986]
[1742947879272,4.85353,2068.9,2068.4,0.7589]
[1742947879475,0.8158,2068.8,2068.4,0.7589]
[1742947886082,0.8158,2068.8,2068.5,0.54257955]
[1742947892702,0.02,2068.9,2068.6,0.55]
[1742947892874,0.02,2068.9,2068.8,6.19532]
[1742947893081,0.02,2068.9,2068.8,8.38150886]
[1742947893295,0.02,2068.9,2068.8,22.88150886]
[1742947894899,0.02,2068.9,2068.8,18.04778886]
[1742947895104,0.02,2068.9,2068.8,17.23618886]
[1742947896071,0.02,2068.9,2068.8,22.06990886]
[1742947899531,0.02,2068.9,2068.8,17.23618886]
[1742947899818,0.02,2068.9,2068.8,2.73618886]
[1742947900580,0.02,2068.9,2068.8,7.56990886]
[1742947902008,0.02,2068.9,2068.8,8.02221653]
[1742947904339,0.02,2068.9,2068.8,22.52221653]
[1742947905544,0.02,2068.9,2068.8,23.5033906]
[1742947909848,0.02,2068.9,2068.8,23.05108293]
[1742947912944,0.02,2068.9,2068.8,23.50201409]
[1742947913547,0.02,2068.9,2068.8,23.05108293]
[1742947913862,0.02,2068.9,2068.8,17.66736293]
[1742947914009,0.02,2068.9,2068.8,0.54081158]
[1742947914566,0.02,2068.9,2068.8,0.53877559]
[1742947914726,0.02,2068.9,2068.6,4.509]
[1742947914934,0.02,2068.9,2068.8,0.53877559]
[1742947915248,0.02,2068.9,2068.6,4.509]
[1742947915420,0.02,2068.9,2068.8,0.53877559]
[1742947915615,0.02,2068.9,2068.7,0.99048825]
[1742947915830,0.02,2068.9,2068.8,0.53877559]
[1742947916232,4.85348,2068.9,2068.8,0.53877559]
[1742947917654,0.02,2068.9,2068.8,0.53877559]
[1742947918352,0.02,2068.9,2068.8,0.99004069]
[1742947920552,4.85348,2068.9,2068.8,0.99004069]
[1742947921859,7.85348,2068.9,2068.8,0.99004069]
[1742947926662,10.02977,2068.9,2068.8,0.99004069]
[1742947926867,14.53877,2068.9,2068.8,0.99004069]
[1742947927159,14.53877,2068.9,2068.8,0.4512651]
[1742947930055,4.83472,2068.4,2068.1,0.4512651]
[1742947930566,4.83472,2068.4,2068.2,0.54222216]
[1742947930767,4.83472,2068.4,2068.2,2.67057827]
[1742947932884,8.64119,2068.5,2068.2,2.67057827]
[1742947933166,3.0,2068.6,2068.3,0.7531]
[1742947933341,4.83443,2068.5,2068.3,0.54305006]
[1742947933542,4.83443,2068.5,2068.4,14.5]
[1742947933762,8.64113,2068.5,2068.4,0.54260233]
[1742947934064,8.64113,2068.5,2068.1,0.4512651]
[1742947934065,4.83466,2068.4,2068.1,0.4512651]
[1742947934268,4.83508,2068.3,2068.1,15.55528261]
[1742947934781,4.83508,2068.3,2068.1,1.05528261]
[1742947935789,9.67018,2068.3,2068.1,1.05528261]
[1742947935966,4.83508,2068.3,2068.1,1.05528261]
[1742947938169,5.64182,2068.2,2068.1,0.4512651]
[1742947942703,4.83512,2068.2,2068.1,0.4512651]
[1742947944174,3.8224,2068.4,2068.1,0.4512651]
[1742947944379,8.65724,2068.4,2068.1,0.4512651]
[1742947944799,7.83484,2068.4,2068.1,0.4512651]
[1742947945113,7.83484,2068.4,2068.0,0.7889]
[1742947945114,4.83502,2068.3,2068.0,0.7889]
[1742947945284,4.83512,2068.2,2068.1,0.65875952]
[1742947945468,4.83512,2068.2,2068.0,0.7889]
[1742947946171,4.83512,2068.2,2068.1,0.54604934]
[1742947947694,4.83489,2068.3,2068.1,0.54604934]
[1742947949718,9.66997,2068.3,2068.1,0.54604934]
[1742947950015,4.83489,2068.3,2068.1,0.54604934]
[1742947952629,0.7627,2068.6,2068.1,1.25941379]
[1742947952630,5.5971,2068.6,2068.1,1.25941379]
[1742947952792,3.0,2068.5,2068.1,5.38128934]
[1742947953389,7.8345,2068.5,2068.1,5.38128934]
[1742947954835,12.6691,2068.5,2068.1,0.54604934]
[1742947957423,4.83466,2068.4,2068.1,0.54604934]
[1742947959640,9.66949,2068.4,2068.1,0.54604934]
[1742947959799,7.83475,2068.4,2068.1,0.54604934]
[1742947959996,3.0,2068.4,2068.1,5.38129934]
[1742947960214,3.0,2068.4,2068.2,1.10057593]
[1742947960412,3.0,2068.4,2068.3,0.54481792]
[1742947961122,4.83374,2068.8,2068.4,4.83463]
[1742947961123,0.7853,2068.8,2068.4,4.83463]
[1742947961330,0.02,2068.9,2068.6,4.83411]
[1742947961530,0.02,2068.9,2068.7,1.64002765]
[1742947965134,0.02,2068.9,2068.8,0.7598]
[1742947965334,0.02,2068.9,2068.8,1.30152915]
[1742947967455,0.02,2068.9,2068.8,0.54172915]
[1742947967624,0.02,2068.9,2068.8,2.71501649]
[1742947968720,0.02,2068.9,2068.8,0.54172915]
[1742947968922,0.02,2068.9,2068.6,5.59392]
[1742947969159,0.02,2068.9,2068.7,0.54096821]
[1742947972081,4.85348,2068.9,2068.7,0.54096821]
[1742947974657,0.02,2068.9,2068.7,0.54096821]
[1742947974861,0.02,2068.9,2068.8,1.67754288]
[1742947975230,0.02,2068.9,2068.8,2.21806353]
[1742947980061,4.85348,2068.9,2068.8,0.54052065]
[1742947980267,5.64488,2068.9,2068.8,0.54052065]
[1742947980475,4.83372,2068.8,2068.6,0.97466055]
[1742947980669,4.83395,2068.7,2068.4,0.8094]
[1742947980961,4.83376,2068.8,2068.5,14.5]
[1742947982502,4.83376,2068.8,2068.6,0.45157141]
[1742947983260,5.6449,2068.9,2068.6,2.26020201]
[1742947983459,4.8535,2068.9,2068.6,2.26020201]
[1742947984389,4.8535,2068.9,2068.7,14.5]
[1742947984611,4.8535,2068.9,2068.7,14.95157141]
[1742947985372,0.7914,2068.8,2068.7,0.45157141]
[1742947985564,0.02,2068.9,2068.7,0.45157141]
[1742947986509,0.02,2068.9,2068.8,0.45157141]
[1742947987808,5.64488,2068.9,2068.8,0.45157141]
[1742947991016,5.64488,2068.9,2068.8,0.94702506]
[1742947995702,5.64488,2068.9,2068.8,1.89268059]
[1742947998605,4.85348,2068.9,2068.8,1.89268059]
[1742947998913,0.02,2068.9,2068.8,1.89268059]
[1742948001324,0.02,2068.9,2068.8,2.65608059]
[1742948001616,0.02,2068.9,2068.8,3.88847965]
[1742948003410,0.02,2068.9,2068.8,9.27219965]
[1742948003719,0.02,2068.9,2068.8,9.32052575]
[1742948003915,0.02,2068.9,2068.8,13.82852575]
[1742948004214,0.02,2068.9,2068.8,13.78019965]
[1742948004419,0.02,2068.9,2068.8,14.53203282]
[1742948004782,0.02,2068.9,2068.8,29.03203282]
[1742948004982,0.02,2068.9,2068.8,19.14031282]
[1742948005179,0.02,2068.9,2068.8,2.64451376]
[1742948006510,0.02,2068.9,2068.8,1.89268059]
[1742948009096,0.02,2068.9,2068.8,1.44110918]
[1742948010424,0.02,2068.9,2068.8,1.89288163]
[1742948019753,0.02,2068.9,2068.8,0.9472261]
[1742948020040,8.64778,2068.9,2068.8,0.9472261]
[1742948020245,10.479186,2068.9,2068.8,0.45177245]
[1742948020427,10.479186,2068.9,2068.8,0.90540124]
[1742948025633,10.479186,2068.9,2068.8,0.45362879]
[1742948025813,7.83382,2068.8,2068.5,14.5]
[1742948026146,7.83382,2068.8,2068.6,0.45481222]
[1742948026640,7.83382,2068.8,2068.7,0.45185544]
[1742948026844,7.83382,2068.8,2068.7,0.90624224]
[1742948030853,7.83382,2068.8,2068.7,0.4543868]
[1742948031024,12.66776,2068.8,2068.5,14.5]
[1742948031354,7.83397,2068.7,2068.6,0.45527793]
[1742948032946,7.83397,2068.7,2068.6,0.90689563]
[1742948033963,8.61417,2068.7,2068.6,0.90689563]
[1742948034162,9.962379,2068.7,2068.6,0.90689563]
[1742948034629,9.962379,2068.7,2068.6,0.4516177]
[1742948034829,10.33060946,2068.7,2068.6,0.4516177]
[1742948035765,4.83538,2068.1,2067.9,0.4516177]
[1742948035973,4.83538,2068.1,2067.9,1.35177152]
[1742948036137,4.83538,2068.1,2068.0,0.45796444]
[1742948037524,7.83538,2068.1,2068.0,0.45796444]
[1742948037721,8.61558,2068.1,2068.0,0.45796444]
[1742948037923,8.857809,2068.1,2068.0,0.45796444]
[1742948038154,8.61578,2068.0,2067.9,0.4516177]
[1742948039165,4.83702,2067.4,2067.2,0.4516177]
[1742948040241,5.61702,2067.5,2067.2,0.4516177]
[1742948041161,4.83667,2067.6,2067.1,14.5]
[1742948041360,4.83667,2067.6,2067.2,2.011291]
[1742948041772,4.83667,2067.6,2067.3,0.7807]
[1742948041944,3.0,2067.7,2067.3,5.61789]
[1742948042147,4.83586,2067.9,2067.4,9.67371]
[1742948042351,3.0,2067.9,2067.5,5.61745]
[1742948042657,3.0,2067.9,2067.6,1.045429]
[1742948043277,7.83592,2067.9,2067.5,0.7807]
[1742948046875,7.83592,2067.9,2067.6,14.5]
[1742948048553,3.0,2067.9,2067.6,14.5]
[1742948049064,7.83583,2067.9,2067.6,14.5]
[1742948049435,7.83583,2067.9,2067.5,0.7807]
[1742948049636,7.83583,2067.9,2067.5,2.277075]
[1742948051185,7.83583,2067.9,2067.6,0.46414964]
[1742948053768,0.8225,2068.3,2067.7,0.7753]
[1742948053969,5.65701,2068.5,2068.0,4.83545]
[1742948054171,4.83473,2068.4,2068.1,0.7753]
[1742948054377,4.83491,2068.3,2068.1,0.46080003]
[1742948054710,4.83491,2068.3,2067.9,0.7753]
[1742948054875,7.83491,2068.3,2068.2,0.46035221]
[1742948055050,7.83491,2068.3,2067.9,0.7753]
[1742948055255,4.83491,2068.3,2068.0,0.4612257]
[1742948055666,7.83491,2068.3,2068.0,0.4612257]
[1742948060494,7.83491,2068.3,2068.0,0.91188696]
[1742948061285,7.83491,2068.3,2068.0,1.27241417]
[1742948061996,7.83491,2068.3,2068.1,0.45066126]
[1742948062299,7.83491,2068.3,2068.2,0.46033002]
[1742948063899,7.83491,2068.3,2068.0,1.79255687]
[1742948064098,7.83491,2068.3,2068.1,0.46077784]
[1742948064286,7.83491,2068.3,2068.1,0.82130505]
[1742948066611,9.184117,2068.3,2068.1,0.82130505]
[1742948066913,8.62792,2068.2,2068.1,0.82130505]
[1742948067892,8.62792,2068.2,2068.1,0.46077784]
[1742948068912,7.83556,2068.1,2067.8,0.45086471]
[1742948069082,7.83556,2068.1,2067.9,0.4608525]
[1742948069478,3.0,2068.1,2067.9,0.4608525]
[1742948069679,3.0,2068.1,2067.9,1.11848522]
[1742948069919,3.0,2068.1,2067.9,1.56934993]
[1742948070279,3.0,2068.1,2068.0,0.4521281]
[1742948070610,3.0,2068.1,2068.0,0.91259927]
[1742948071586,3.0,2068.1,2068.0,1.36346398]
[1742948073011,3.0,2068.2,2068.0,1.36346398]
[1742948073216,7.83469,2068.4,2068.0,2.13201665]
[1742948073392,7.83469,2068.4,2068.0,2.96041665]
[1742948074915,7.83469,2068.4,2068.1,0.4521281]
[1742948075225,3.0,2068.2,2068.1,0.90299281]
[1742948079622,7.83512,2068.2,2068.1,0.90299281]
[1742948080126,3.0,2068.2,2068.1,0.90299281]
[1742948081123,3.0,2068.2,2068.1,1.36294956]
[1742948084324,7.83512,2068.2,2068.1,1.36294956]
[1742948089429,9.182113,2068.2,2068.1,1.36294956]
[1742948089745,9.982013,2068.2,2068.1,1.36294956]
[1742948090496,9.982013,2068.2,2068.1,0.90299281]
[1742948091010,14.490013,2068.2,2068.1,0.45086471]
[1742948091213,14.490013,2068.2,2068.1,0.87301225]
[1742948091413,14.490013,2068.2,2068.1,0.45086471]
[1742948091812,4.83655,2067.6,2067.3,15.90968325]
[1742948092013,4.83655,2067.6,2067.3,18.51033858]
[1742948092334,4.83655,2067.6,2067.4,0.42528347]
[1742948093030,5.6362,2067.7,2067.4,0.42528347]
[1742948093599,5.6362,2067.7,2067.5,0.45280657]
[1742948094135,8.6362,2067.7,2067.6,0.42438728]
[1742948095312,8.6362,2067.7,2067.4,0.45262365]
[1742948095531,8.6362,2067.7,2067.5,0.42483535]
[1742948095737,13.47269,2067.7,2067.5,0.42483535]
[1742948096835,13.47269,2067.7,2067.3,18.05947387]
[1742948097131,8.6362,2067.7,2067.3,18.05947387]
[1742948097325,8.6362,2067.7,2067.4,0.42528347]
[1742948098238,8.6362,2067.7,2067.5,0.4523981]
[1742948098404,13.47269,2067.7,2067.5,0.4523981]
[1742948098739,8.6362,2067.7,2067.6,0.42438728]
[1742948102242,8.6362,2067.7,2067.3,0.95881854]
[1742948102444,3.7999,2067.7,2067.6,0.42539969]
[1742948102742,8.6362,2067.7,2067.4,14.5]
[1742948103040,8.6362,2067.7,2067.5,0.42584777]
[1742948103411,7.8363,2067.7,2067.5,0.42584777]
[1742948106936,12.6727,2067.7,2067.5,0.42584777]
[1742948107336,7.83652,2067.6,2067.5,0.42584777]
[1742948107637,7.8369,2067.5,2067.0,0.8222]
[1742948107837,7.8369,2067.5,2067.1,0.45229631]
[1742948109445,7.8369,2067.5,2067.2,0.45229631]
[1742948110849,7.8369,2067.5,2067.1,0.45229631]
[1742948111049,12.67383,2067.5,2067.1,1.92014367]
[1742948111274,12.67383,2067.5,2067.2,0.42719226]
[1742948111424,4.83699,2067.4,2067.2,0.42719226]
[1742948112327,4.83699,2067.4,2067.2,0.87948857]
[1742948113126,4.83699,2067.4,2067.2,15.37948857]
[1742948114057,4.83699,2067.4,2067.2,14.92719226]
[1742948115133,7.83683,2067.5,2067.2,14.92719226]
[1742948115963,12.67376,2067.5,2067.2,14.92719226]
[1742948116165,12.67376,2067.5,2067.2,1.40384406]
[1742948116362,0.8117,2067.7,2067.3,4.83704]
[1742948116660,4.83543,2068.1,2067.2,1.17999226]
[1742948116661,4.83543,2068.1,2067.5,5.58933]
[1742948116846,3.0,2067.9,2067.5,5.58933]
[1742948117028,5.64798,2068.2,2067.6,5.26289819]
[1742948117229,5.64798,2068.2,2067.8,0.7528]
[1742948117430,4.83518,2068.2,2067.8,15.2528]
[1742948117619,4.83518,2068.2,2067.9,0.42513422]
[1742948117824,3.0,2068.1,2067.9,0.42513422]
[1742948118355,8.64838,2068.0,2067.9,0.42513422]
[1742948118557,7.83602,2067.9,2067.4,14.95229401]
[1742948118763,12.67205,2067.9,2067.5,0.39038553]
[1742948119344,12.67203,2067.9,2067.5,0.39038553]
[1742948119538,12.67203,2067.9,2067.3,5.59]
[1742948119774,12.67203,2067.9,2067.4,0.39085549]
[1742948121162,4.83605,2067.8,2067.4,0.39085549]
[1742948121963,3.0,2067.7,2067.4,0.39085549]
[1742948122273,3.8128,2067.7,2067.5,0.45296149]
[1742948122439,8.64924,2067.7,2067.5,0.45296149]
[1742948122630,7.83652,2067.6,2067.5,0.45296149]
[1742948124261,7.83652,2067.6,2067.1,6.53638051]
[1742948124427,7.83652,2067.6,2067.1,5.59043]
[1742948124962,4.83679,2067.5,2067.1,0.7528]
[1742948125127,5.60099,2067.4,2066.9,5.3176]
[1742948125330,5.60099,2067.4,2066.9,7.05231213]
[1742948125557,9.6747,2067.3,2066.9,2.54331213]
[1742948125861,4.83729,2067.3,2066.9,0.8086]
[1742948126071,8.60095,2067.4,2066.9,0.8086]
[1742948126293,8.60095,2067.4,2067.0,0.39306334]
[1742948126470,4.83734,2067.3,2067.0,0.39306334]
[1742948128093,9.67474,2067.3,2067.0,0.39306334]
[1742948128253,4.83734,2067.3,2067.0,0.39306334]
[1742948128454,4.83769,2067.1,2067.0,0.39306334]
[1742948128648,5.60159,2067.1,2066.7,16.85257128]
[1742948128889,8.60159,2067.1,2067.0,0.39522575]
[1742948129089,3.0,2066.8,2066.7,2.35257128]
[1742948129826,8.60229,2066.8,2066.6,14.5]
[1742948129992,8.60229,2066.8,2066.3,0.8086]
[1742948130299,4.83863,2066.7,2066.3,4.865994]
[1742948130504,4.83863,2066.7,2066.4,14.5]
[1742948130848,4.83863,2066.7,2066.3,0.8086]
[1742948131444,4.83863,2066.7,2066.3,15.3086]
[1742948133285,4.83863,2066.7,2066.3,14.5]
[1742948133286,4.83889,2066.6,2066.3,14.5]
[1742948133479,4.83867,2066.7,2066.3,14.5]
[1742948135409,4.83867,2066.7,2066.3,16.998816]
[1742948140379,4.83867,2066.7,2065.8,5.74835921]
[1742948140380,3.7829,2066.6,2065.8,1.3002]
[1742948140609,8.62179,2066.6,2066.0,9.68015]
[1742948141005,13.46084,2066.6,2066.1,14.89948083]
[1742948141317,8.62179,2066.6,2066.1,14.89948083]
[1742948141810,3.0,2066.4,2066.1,14.89948083]
[1742948142475,7.83945,2066.4,2066.1,14.89948083]
[1742948142676,0.8254,2066.3,2066.1,14.89948083]
[1742948144511,8.66456,2066.5,2066.1,14.89948083]
[1742948144882,3.8254,2066.5,2066.1,20.55067083]
[1742948145083,3.8254,2066.5,2066.1,23.08975591]
[1742948145400,3.8254,2066.5,2066.1,18.24976591]
[1742948145611,8.66457,2066.5,2066.1,18.24976591]
[1742948145915,3.8254,2066.5,2066.1,18.24976591]
[1742948146225,0.8254,2066.5,2066.1,14.89948083]
[1742948146520,4.83944,2066.4,2066.1,14.89948083]
[1742948146722,4.83957,2066.3,2066.1,14.89948083]
[1742948147022,3.0,2066.3,2066.1,14.89948083]
[1742948147518,5.6652,2066.2,2066.1,0.39948083]
[1742948147717,6.53172,2066.2,2066.1,0.39948083]
[1742948147920,6.53172,2066.2,2065.7,4.84088]
[1742948148218,5.6652,2066.2,2065.8,14.5]
[1742948148421,0.8254,2066.2,2065.8,14.90233523]
[1742948149114,5.66522,2066.2,2065.8,14.90233523]
[1742948149322,0.8254,2066.2,2065.8,20.55409523]
[1742948150319,0.8254,2066.2,2065.8,15.71353523]
[1742948151418,0.8254,2066.2,2065.8,18.25306375]
[1742948151718,0.8254,2066.2,2065.8,23.09377375]
[1742948152126,0.8254,2066.2,2065.8,23.09366375]
[1742948152734,3.0,2066.3,2065.9,4.84045]
[1742948153037,4.511,2066.7,2066.2,4.83961]
[1742948153327,5.3364,2066.8,2066.3,4.83945]
[1742948153630,0.8254,2066.8,2066.4,4.83917]
[1742948153798,5.3434,2067.0,2066.5,5.59697]
[1742948153998,5.67046,2067.0,2066.6,0.40239731]
[1742948154225,3.0,2066.9,2066.6,0.40239731]
[1742948154532,5.67046,2067.0,2066.6,0.40239731]
[1742948154831,0.8324,2067.0,2066.6,0.40239731]
[1742948155035,3.8324,2067.0,2066.6,0.40239731]
[1742948155442,8.67034,2067.0,2066.6,0.40239731]
[1742948156533,3.8324,2067.0,2066.6,5.24125731]
[1742948156738,4.83748,2067.2,2066.7,1.08382073]
[1742948156739,0.8324,2067.2,2066.7,1.08382073]
[1742948156922,5.66988,2067.2,2066.7,5.92224073]
[1742948157231,3.0,2067.1,2066.8,0.40021019]
[1742948158639,7.83771,2067.1,2066.8,0.40021019]
[1742948159050,7.83771,2067.1,2066.6,19.3388]
[1742948159216,7.83771,2067.1,2066.9,0.39943391]
[1742948159416,7.83771,2067.1,2066.6,19.33871]
[1742948159648,7.83771,2067.1,2067.0,0.39898557]
[1742948160255,7.83771,2067.1,2066.6,4.83871]
[1742948160457,7.83771,2067.1,2067.0,0.39898557]
[1742948160670,7.83771,2067.1,2066.6,9.67744]
[1742948160846,3.8324,2067.2,2067.0,0.39898557]
[1742948161054,8.6699,2067.2,2066.7,7.332084]
[1742948161247,3.0,2067.2,2067.1,0.39853727]
[1742948161438,9.34684,2067.5,2067.0,4.83777]
[1742948161766,3.0,2067.3,2067.1,0.39853727]
[1742948161958,3.0,2067.3,2066.9,5.596]
[1742948162122,3.0,2067.4,2067.0,6.28017171]
[1742948162328,3.0,2067.4,2067.0,11.11793171]
[1742948162529,3.0,2067.4,2067.0,6.28016171]
[1742948164648,4.83724,2067.3,2067.0,1.44240171]
[1742948164947,4.83724,2067.3,2067.0,0.39896371]
[1742948165329,7.83701,2067.4,2067.0,0.39896371]
[1742948166659,3.0,2067.4,2067.0,5.23677371]
[1742948166861,3.0,2067.4,2067.0,5.23675371]
[1742948167058,0.8324,2067.6,2067.0,0.44733901]
[1742948167272,4.83627,2067.8,2067.3,4.83712]
[1742948167273,14.94055,2067.8,2067.3,4.83712]
[1742948167428,14.94055,2067.8,2067.2,5.59581]
[1742948167429,3.0,2067.7,2067.2,5.59581]
[1742948167629,7.83631,2067.7,2067.4,0.39415386]
[1742948167851,10.10412,2067.8,2067.3,0.39460203]
[1742948168056,14.94038,2067.8,2067.5,0.39370574]
[1742948168255,14.94038,2067.8,2067.2,5.59569]
[1742948168256,3.0,2067.7,2067.4,0.39415386]
[1742948168566,10.43038,2067.8,2067.5,0.39370574]
[1742948168858,10.43038,2067.8,2067.2,10.43297]